fUST/lending_fUST_20240229
["ID","MTS","AMOUNT","RATE_DAILY","PERIOD"]
[315785005,1709176247075,-3760.09,0.00020379,2]
[315785006,1709176247084,-500.0,0.00020379,2]
[315785007,1709176247094,-500.0,0.00020379,2]
[315785008,1709176247103,-738.27,0.00020379,2]
[315785009,1709176247112,-640.25,0.00020379,2]
[315785010,1709176247121,-500.0,0.00020379,2]
[315785011,1709176247130,-2373.49,0.00020379,2]
[315785012,1709176247139,-500.0,0.00020379,2]
[315785013,1709176247148,-1445.62,0.00020379,2]
[315785014,1709176247157,-500.0,0.00020379,2]
[315785015,1709176247166,-835.74,0.00020379,2]
[315785016,1709176247176,-523.83,0.00020379,2]
[315785017,1709176247185,-500.0,0.00020379,2]
[315785018,1709176247194,-1000.0,0.00020403,2]
[315785019,1709176247203,-555.13,0.00020452,2]
[315785020,1709176247213,-20131.67261345,0.00020483,2]
[315785021,1709176247224,-500.0,0.00020541,2]
[315785022,1709176247235,-540.24,0.00020541,2]
[315785023,1709176247244,-655.34,0.00020541,2]
[315785024,1709176247253,-500.0,0.00020541,2]
[315785025,1709176247263,-500.0,0.00020541,2]
[315785026,1709176247273,-1000.0,0.00020632,2]
[315785027,1709176247283,-500.0,0.00020653,2]
[315785028,1709176247293,-500.0,0.00020653,2]
[315785029,1709176247302,-500.0,0.00020653,2]
[315785030,1709176247312,-563.37,0.00020653,2]
[315785031,1709176247321,-546.2,0.00020653,2]
[315785032,1709176247331,-4273.08,0.00020653,2]
[315785033,1709176247340,-500.0,0.00020653,2]
[315785034,1709176247349,-3760.09,0.00020653,2]
[315785035,1709176247358,-500.0,0.00020653,2]
[315785036,1709176247367,-500.0,0.00020653,2]
[315785037,1709176247376,-738.27,0.00020653,2]
[315785038,1709176247386,-500.0,0.00020653,2]
[315785039,1709176247396,-2373.49,0.00020653,2]
[315785040,1709176247405,-500.0,0.00020653,2]
[315785041,1709176247414,-1445.62,0.00020653,2]
[315785042,1709176247424,-500.0,0.00020653,2]
[315785043,1709176247433,-835.74,0.00020653,2]
[315785044,1709176247442,-523.83,0.00020653,2]
[315785045,1709176247452,-500.0,0.00020653,2]
[315785046,1709176247461,-555.13,0.00020726,2]
[315785047,1709176247471,-1000.0,0.00020785,2]
[315785048,1709176247480,-500.0,0.00020815,2]
[315785049,1709176247490,-540.24,0.00020815,2]
[315785050,1709176247499,-655.34,0.00020815,2]
[315785051,1709176247508,-500.0,0.00020815,2]
[315785052,1709176247518,-500.0,0.00020815,2]
[315785053,1709176247528,-1000.0,0.00020861,2]
[315785054,1709176247538,-302.509124,0.000209,9]
[315785055,1709176247547,-500.0,0.00020927,2]
[315785056,1709176247556,-500.0,0.00020927,2]
[315785057,1709176247566,-500.0,0.00020927,2]
[315785058,1709176247576,-563.37,0.00020927,2]
[315785059,1709176247586,-546.2,0.00020927,2]
[315785060,1709176247595,-4273.08,0.00020927,2]
[315785061,1709176247604,-500.0,0.00020927,2]
[315785062,1709176247614,-3760.09,0.00020927,2]
[315785063,1709176247624,-500.0,0.00020927,2]
[315785064,1709176247634,-500.0,0.00020927,2]
[315785065,1709176247643,-738.27,0.00020927,2]
[315785066,1709176247652,-500.0,0.00020927,2]
[315785067,1709176247662,-2373.49,0.00020927,2]
[315785068,1709176247671,-258.48730035,0.00020927,2]
[315785069,1709176247681,-1445.62,0.00020927,2]
[315785070,1709176247691,-500.0,0.00020927,2]
[315785071,1709176247700,-835.74,0.00020927,2]
[315785072,1709176247709,-523.83,0.00020927,2]
[315785073,1709176247718,-171.8,0.00020927,2]
[315785074,1709176247727,-5074.71707113,0.00020977,2]
[315785075,1709176247737,-4713.99708273,0.00020996,2]
[315785076,1709176247747,-1870.33081935,0.00020996,2]
[315785077,1709176247757,-284.96077667,0.00020996,2]
[315785078,1709176247767,-456.80893417,0.00020996,2]
[315785079,1709176247777,-328.62,0.00020997,2]
[315785080,1709176247787,-328.62,0.00020997,2]
[315785081,1709176247796,-328.62,0.00020997,2]
[315785082,1709176247805,-328.62,0.00020997,2]
[315785083,1709176247815,-328.62,0.00020997,2]
[315785084,1709176247826,-328.62,0.00020997,2]
[315785085,1709176247835,-328.62,0.00020997,2]
[315785086,1709176247845,-328.62,0.00020997,2]
[315785087,1709176247854,-328.62,0.00020997,2]
[315785088,1709176247864,-328.62,0.00020997,2]
[315785089,1709176247874,-500.0,0.00020997,2]
[315785090,1709176247884,-500.0,0.00020997,2]
[315785091,1709176247893,-500.0,0.00020997,2]
[315785092,1709176247902,-478.16041574,0.00020997,2]
[315785093,1709176247911,-500.0,0.00020997,2]
[315785094,1709176247920,-301.04456574,0.00020997,2]
[315785095,1709176247930,-500.0,0.00020997,2]
[315785096,1709176247939,-500.0,0.00020997,2]
[315785097,1709176247949,-478.98071348,0.00020997,2]
[315785098,1709176247958,-500.0,0.00020997,2]
[315785099,1709176247967,-500.0,0.00020997,2]
[315785100,1709176247976,-500.0,0.00020997,2]
[315785101,1709176247985,-500.0,0.00020997,2]
[315785102,1709176247994,-500.0,0.00020997,2]
[315785103,1709176248003,-500.0,0.00020997,2]
[315785104,1709176248013,-500.0,0.00020997,2]
[315785105,1709176248022,-500.0,0.00020997,2]
[315785106,1709176248032,-500.0,0.00020997,2]
[315785107,1709176248041,-500.0,0.00020997,2]
[315785108,1709176248050,-500.0,0.00020997,2]
[315785109,1709176248059,-500.0,0.00020997,2]
[315785110,1709176248068,-500.0,0.00020997,2]
[315785111,1709176248077,-500.0,0.00020997,2]
[315785112,1709176248087,-580.73973058,0.00020997,2]
[315785113,1709176248096,-500.0,0.00020997,2]
[315785114,1709176248106,-500.0,0.00020997,2]
[315785115,1709176248115,-500.0,0.00020997,2]
[315785116,1709176248125,-500.0,0.00020997,2]
[315785117,1709176248134,-261.25350192,0.00020997,2]
[315785118,1709176248142,-500.0,0.00020997,2]
[315785119,1709176248152,-500.0,0.00020997,2]
[315785120,1709176248161,-500.0,0.00020997,2]
[315785121,1709176248171,-500.0,0.00020997,2]
[315785122,1709176248180,-500.0,0.00020997,2]
[315785123,1709176248189,-500.0,0.00020997,2]
[315785124,1709176248199,-500.0,0.00020997,2]
[315785125,1709176248213,-500.0,0.00020997,2]
[315785126,1709176248222,-500.0,0.00020997,2]
[315785127,1709176248232,-500.0,0.00020997,2]
[315785128,1709176248241,-500.0,0.00020997,2]
[315785129,1709176248250,-500.0,0.00020997,2]
[315785130,1709176248260,-500.0,0.00020997,2]
[315785131,1709176248270,-500.0,0.00020997,2]
[315785132,1709176248280,-500.0,0.00020997,2]
[315785133,1709176248290,-500.0,0.00020997,2]
[315785134,1709176248299,-500.0,0.00020997,2]
[315785135,1709176248309,-500.0,0.00020997,2]
[315785136,1709176248319,-500.0,0.00020997,2]
[315785137,1709176248328,-524.67287886,0.00020997,2]
[315785138,1709176248337,-500.0,0.00020997,2]
[315785139,1709176248346,-500.0,0.00020997,2]
[315785140,1709176248355,-500.0,0.00020997,2]
[315785141,1709176248363,-500.0,0.00020997,2]
[315785142,1709176248372,-500.0,0.00020997,2]
[315785143,1709176248381,-500.0,0.00020997,2]
[315785144,1709176248390,-500.0,0.00020997,2]
[315785145,1709176248400,-562.77329574,0.00020997,2]
[315785146,1709176248411,-500.0,0.00020997,2]
[315785147,1709176248421,-500.0,0.00020997,2]
[315785148,1709176248429,-500.0,0.00020997,2]
[315785149,1709176248438,-350.0,0.00020997,2]
[315785150,1709176248447,-500.0,0.00020997,2]
[315785151,1709176248456,-500.0,0.00020997,2]
[315785152,1709176248466,-500.0,0.00020997,2]
[315785153,1709176248475,-500.0,0.00020997,2]
[315785154,1709176248484,-500.0,0.00020997,2]
[315785155,1709176248493,-500.0,0.00020997,2]
[315785156,1709176248503,-580.73973058,0.00020997,2]
[315785157,1709176248513,-5444.5321749,0.00020998,2]
[315785158,1709176248523,-261.19369918,0.00020998,2]
[315785159,1709176248532,-155.15515516,0.00020998,2]
[315785160,1709176248542,-155.12254681,0.00020998,2]
[315785161,1709176248551,-3711.16993414,0.00020998,2]
[315785162,1709176248561,-1388.32196034,0.00020998,2]
[315785163,1709176248571,-200.0,0.00020998,2]
[315785164,1709176248581,-743.84063402,0.00020998,2]
[315785165,1709176248591,-261.20574014,0.00020998,2]
[315785166,1709176248600,-6540.67630205,0.00020998,30]
[315785234,1709177436323,-274.00317953,0.00018905,2]
[315785236,1709177436333,-417.53475772,0.00018906,2]
[315785278,1709177438255,-19810.05076721,0.00018906,2]
[315785279,1709177438267,-2039.62972644,0.00018906,2]
[315785280,1709177438278,-1260.4177973,0.00018906,2]
[315785281,1709177438289,-280.86267126,0.00018906,2]
[315785289,1709177441306,-1091.50428007,0.00018906,2]
[315785290,1709177441315,-155.14894299,0.00019034,2]
[315785291,1709177441325,-283.479802,0.00019036,2]
[315785292,1709177441334,-497.09528471,0.00019132,2]
[315785328,1709177851621,1741.3906421,0.00017723,2]
[315785329,1709177853163,3518.2658803,0.00017723,2]
[315785330,1709177865980,283.479802,0.00017723,2]
[315785331,1709177924714,932.3427166,0.00017957,2]
[315785332,1709178148932,1684.4963399,0.00017805,2]
[315785468,1709178638586,-155.12409928,0.000185,2]
[315785470,1709178638595,-274.00317953,0.00018501,2]
[315785472,1709178638605,-160.4252249,0.00018502,2]
[315785474,1709178638615,-354.6542393,0.000189,2]
[315785477,1709178638626,-16224.74373556,0.00018962,2]
[315785480,1709178638635,-13497.69047297,0.00018971,2]
[315786660,1709178651015,-2727.05326259,0.00018971,2]
[315786662,1709178651026,-16224.74373556,0.00018994,2]
[315786664,1709178651036,-155.14894299,0.00019132,2]
[315786666,1709178651046,-501.83571764,0.00019178,2]
[315786668,1709178651056,-501.31497624,0.00019178,2]
[315786670,1709178651067,-500.0,0.00019178,2]
[315786672,1709178651077,-503.79030417,0.00019178,2]
[315786675,1709178651087,-500.0,0.00019178,2]
[315786677,1709178651097,-500.0,0.00019178,2]
[315786679,1709178651106,-500.0,0.00019178,2]
[315786680,1709178651116,-502.91355065,0.00019178,2]
[315786682,1709178651126,-502.41748955,0.00019178,2]
[315786684,1709178651137,-503.13227498,0.00019178,2]
[315786686,1709178651147,-503.32837623,0.00019178,2]
[315786689,1709178651157,-501.11892646,0.00019178,2]
[315786691,1709178651166,-501.64064301,0.00019178,2]
[315786693,1709178651176,-501.13012765,0.00019178,2]
[315786695,1709178651185,-500.0,0.00019178,2]
[315786697,1709178651195,-368.9774924,0.00019178,2]
[315786699,1709178651204,-500.0,0.00019178,2]
[315786701,1709178651213,-500.0,0.00019178,2]
[315786702,1709178651223,-500.0,0.00019178,2]
[315786705,1709178651233,-544.06,0.00019178,2]
[315786721,1709178651386,-4068.88,0.00019178,2]
[315786723,1709178651396,-500.0,0.00019178,2]
[315786725,1709178651405,-1847.59917988,0.00019178,2]
[315789578,1709178859329,383.18909296,0.000176,2]
[315789579,1709178925996,1294.1471236,0.000176,2]
[315789580,1709178943976,1294.1471236,0.000176,2]
[315789581,1709178961988,1294.1471236,0.000176,2]
[315789582,1709178984003,1294.1471236,0.000176,2]
[315789583,1709179002001,1294.1471236,0.000176,2]
[315789584,1709179020216,1294.1471236,0.000176,2]
[315789585,1709179041506,1294.1471236,0.000176,2]
[315789586,1709179058006,180.6730166,0.000176,2]
[315789616,1709179811988,299.0,1e-05,2]
[315789652,1709179832740,-274.00317953,0.00018866,2]
[315789654,1709179832750,-155.08219356,0.00018867,2]
[315789656,1709179832761,-236.43615954,0.000189,2]
[315789658,1709179832773,-155.7565308,0.00019178,2]
[315789661,1709179832783,-501.01112189,0.00019178,2]
[315789663,1709179832794,-500.0,0.00019178,2]
[315789665,1709179832804,-500.0,0.00019178,2]
[315789667,1709179832813,-500.83411477,0.00019178,2]
[315789669,1709179832822,-501.54030111,0.00019178,2]
[315789671,1709179832833,-500.0,0.00019178,2]
[315789673,1709179832842,-501.46384346,0.00019178,2]
[315789675,1709179832852,-567.9814316,0.00019178,2]
[315789678,1709179832865,-500.0,0.00019178,2]
[315789680,1709179832875,-473.13173528,0.00019178,2]
[315789682,1709179832886,-500.0,0.00019178,2]
[315789684,1709179832899,-502.8274011,0.00019178,2]
[315789686,1709179832909,-500.0,0.00019178,2]
[315789689,1709179832921,-293.70627704,0.00019178,2]
[315789691,1709179832930,-501.54141491,0.00019178,2]
[315789692,1709179832941,-500.70134215,0.00019178,2]
[315789694,1709179832951,-501.47650943,0.00019178,2]
[315789696,1709179832961,-500.78564094,0.00019178,2]
[315789697,1709179832973,-500.0,0.00019178,2]
[315789698,1709179832982,-500.0,0.00019178,2]
[315789699,1709179832993,-210.55193778,0.00019178,2]
[315789700,1709179833004,-532.97881315,0.00019178,2]
[315789701,1709179833015,-316.27718116,0.00019178,2]
[315789702,1709179833025,-500.0,0.00019178,2]
[315789703,1709179833036,-501.97832364,0.00019178,2]
[315789704,1709179833047,-500.0,0.00019178,2]
[315789705,1709179833057,-500.0,0.00019178,2]
[315789706,1709179833068,-481.84199243,0.00019178,2]
[315789707,1709179833081,-507.10057998,0.00019178,2]
[315789708,1709179833092,-502.99044428,0.00019178,2]
[315789709,1709179833103,-500.0,0.00019178,2]
[315789710,1709179833114,-500.0,0.00019178,2]
[315789711,1709179833125,-508.89597719,0.00019178,2]
[315789712,1709179833137,-500.0,0.00019178,2]
[315789713,1709179833148,-548.29032681,0.00019178,2]
[315789714,1709179833159,-501.67936081,0.00019178,2]
[315789715,1709179833171,-481.83002369,0.00019178,2]
[315789716,1709179833181,-553.19870138,0.00019178,2]
[315789717,1709179833192,-503.81333298,0.00019178,2]
[315789718,1709179833203,-500.0,0.00019178,2]
[315789719,1709179833214,-500.0,0.00019178,2]
[315789720,1709179833226,-500.0,0.00019178,2]
[315789721,1709179833237,-500.0,0.00019178,2]
[315789722,1709179833248,-500.0,0.00019178,2]
[315789723,1709179833260,-460.62465685,0.00019178,2]
[315789724,1709179833272,-500.0,0.00019178,2]
[315789725,1709179833284,-501.80990772,0.00019178,2]
[315789726,1709179833296,-500.0,0.00019178,2]
[315789727,1709179833308,-501.90441405,0.00019178,2]
[315789728,1709179833321,-502.1189906,0.00019178,2]
[315789729,1709179833335,-502.12748916,0.00019178,2]
[315789730,1709179833348,-500.0,0.00019178,2]
[315789731,1709179833359,-500.0,0.00019178,2]
[315789732,1709179833372,-506.28916614,0.00019178,2]
[315789733,1709179833385,-501.47735661,0.00019178,2]
[315789734,1709179833396,-500.7728736,0.00019178,2]
[315789735,1709179833409,-203.01512997,0.00019178,2]
[315789736,1709179833421,-502.77524564,0.00019178,2]
[315789737,1709179833432,-502.3527152,0.00019178,2]
[315789738,1709179833445,-502.47899867,0.00019178,2]
[315789739,1709179833458,-500.0,0.00019178,2]
[315789740,1709179833470,-503.63249038,0.00019178,2]
[315789741,1709179833482,-236.6315035,0.00019178,2]
[315789742,1709179833494,-500.0,0.00019178,2]
[315789743,1709179833505,-501.07982285,0.00019178,2]
[315789744,1709179833516,-473.19270701,0.00019178,2]
[315789745,1709179833528,-500.73885552,0.00019178,2]
[315789746,1709179833539,-474.48471878,0.00019178,2]
[315789747,1709179833550,-506.62212972,0.00019178,2]
[315789748,1709179833561,-240.30973144,0.00019178,2]
[315789749,1709179833571,-500.0,0.00019178,2]
[315789750,1709179833584,-310.98003799,0.00019178,2]
[315789751,1709179833595,-647.59,0.00019178,2]
[315789752,1709179833606,-500.0,0.00019178,2]
[315789753,1709179833618,-501.34269831,0.00019178,2]
[315789754,1709179833628,-500.0,0.00019178,2]
[315789755,1709179833639,-415.23605833,0.00019178,2]
[315789756,1709179833650,-500.0,0.00019178,2]
[315789757,1709179833661,-500.0,0.00019178,2]
[315789758,1709179833672,-500.0,0.00019178,2]
[315789759,1709179833684,-500.0,0.00019178,2]
[315789760,1709179833694,-272.40073224,0.00019178,2]
[315789761,1709179833705,-267.84247151,0.00019178,2]
[315789762,1709179833716,-502.07688249,0.00019178,2]
[315789763,1709179833727,-500.0,0.00019178,2]
[315789764,1709179833737,-505.44097916,0.00019178,2]
[315789765,1709179833747,-500.0,0.00019178,2]
[315789766,1709179833757,-4076.53,0.00019178,2]
[315789767,1709179833767,-503.01200558,0.00019178,2]
[315789768,1709179833778,-504.28010101,0.00019178,2]
[315789769,1709179833788,-504.55945008,0.00019178,2]
[315789770,1709179833798,-3573.0,0.00019178,2]
[315789771,1709179833808,-521.39,0.00019178,2]
[315789772,1709179833818,-500.0,0.00019178,2]
[315789773,1709179833829,-504.26715171,0.00019178,2]
[315789774,1709179833840,-502.99096657,0.00019178,2]
[315789775,1709179833850,-500.0,0.00019178,2]
[315789776,1709179833860,-500.0,0.00019178,2]
[315789777,1709179833873,-151.0,0.00019178,2]
[315789778,1709179834035,-500.0,0.00019178,2]
[315789779,1709179834046,-500.0,0.00019178,2]
[315789780,1709179834056,-500.0,0.00019178,2]
[315789781,1709179834066,-500.93326035,0.00019178,2]
[315789782,1709179834078,-508.48906955,0.00019178,2]
[315789783,1709179834088,-500.0,0.00019178,2]
[315789784,1709179834098,-500.0,0.00019178,2]
[315789785,1709179834108,-1430.42,0.00019178,2]
[315789786,1709179834117,-500.0,0.00019178,2]
[315789787,1709179834127,-519.85,0.00019178,2]
[315789788,1709179834136,-507.95325425,0.00019178,2]
[315789789,1709179834145,-500.0,0.00019178,2]
[315789790,1709179834155,-500.0,0.00019178,2]
[315789791,1709179834164,-7142.96,0.00019411,3]
[315789792,1709179834173,-8571.56,0.00019421,3]
[315789793,1709179834182,-500.0,0.00019441,2]
[315789794,1709179834191,-338.6,0.00019442,3]
[315789795,1709179834200,-500.0,0.0001945,2]
[315789796,1709179834209,-393.95593309,0.0001945,2]
[315789953,1709179841761,-106.04406691,0.0001945,2]
[315789955,1709179841771,-501.10646213,0.0001945,2]
[315789958,1709179841781,-2088.13,0.0001945,2]
[315789959,1709179841790,-736.01,0.0001945,2]
[315789961,1709179841799,-500.75351499,0.0001945,2]
[315789963,1709179841809,-607.87,0.0001945,2]
[315789965,1709179841817,-500.0,0.00019451,2]
[315789967,1709179841827,-504.9475842,0.00019451,2]
[315789969,1709179841835,-502.82515523,0.00019451,2]
[315789971,1709179841845,-648.52,0.00019451,2]
[315789973,1709179841855,-500.0,0.00019452,2]
[315789975,1709179841864,-500.0,0.00019452,2]
[315789977,1709179841880,-500.0,0.00019452,2]
[315789979,1709179841899,-500.0,0.00019452,2]
[315789981,1709179841918,-500.0,0.00019452,2]
[315789983,1709179841927,-500.0,0.00019452,2]
[315789985,1709179841937,-647.59,0.00019452,2]
[315789987,1709179841946,-500.0,0.00019452,2]
[315789989,1709179841955,-500.0,0.00019452,2]
[315789991,1709179841964,-500.0,0.00019452,2]
[315789993,1709179841973,-503.94259034,0.00019452,2]
[315789995,1709179841982,-500.0,0.00019452,2]
[315789997,1709179841991,-500.0,0.00019452,2]
[315789999,1709179842000,-1042.85627174,0.00019452,2]
[315790001,1709179842012,-2627.63557911,0.00019452,2]
[315791579,1709180877398,10000.0,0.00018,2]
[315791752,1709181039148,-274.00317953,0.00018287,2]
[315791753,1709181039157,-19498.8657914,0.00018288,2]
[315791754,1709181039222,-1520.10343555,0.00018288,2]
[315791811,1709181039769,-1843.52737132,0.00018288,2]
[315791812,1709181039781,-1374.84676193,0.00018288,2]
[315791813,1709181039790,-422.01301211,0.000189,2]
[315791814,1709181039800,-500.0,0.00019178,2]
[315791815,1709181039810,-500.0,0.00019178,2]
[315791816,1709181039819,-149.90022596,0.00019178,2]
[315792283,1709181045148,-350.09977404,0.00019178,2]
[315792284,1709181045157,-152.91210993,0.00019178,2]
[315792324,1709181045500,-354.43651873,0.00019178,2]
[315792326,1709181045510,-500.0,0.00019178,2]
[315792328,1709181045519,-500.0,0.00019178,2]
[315792330,1709181045529,-500.0,0.00019178,2]
[315792332,1709181045539,-500.0,0.00019178,2]
[315792334,1709181045548,-500.0,0.00019178,2]
[315792336,1709181045557,-287.83353781,0.00019178,2]
[315792337,1709181045566,-500.0,0.00019178,2]
[315792339,1709181045576,-500.0,0.00019178,2]
[315792341,1709181045586,-502.49135031,0.00019178,2]
[315792343,1709181045595,-500.0,0.00019178,2]
[315792346,1709181045606,-500.0,0.00019178,2]
[315792347,1709181045616,-500.0,0.00019178,2]
[315792349,1709181045625,-614.84,0.00019178,2]
[315792351,1709181045635,-500.0,0.00019178,2]
[315792353,1709181045644,-500.0,0.00019178,2]
[315792355,1709181045654,-512.90408364,0.00019178,2]
[315792357,1709181045663,-504.5874269,0.00019178,2]
[315792359,1709181045672,-500.0,0.00019178,2]
[315792361,1709181045682,-500.0,0.00019178,2]
[315792363,1709181045692,-500.0,0.00019178,2]
[315792365,1709181045702,-491.84761923,0.00019178,2]
[315792367,1709181045714,-8.15238077,0.00019178,2]
[315792369,1709181045723,-500.0,0.00019178,2]
[315792372,1709181045734,-500.0,0.00019178,2]
[315792373,1709181045743,-502.07,0.00019178,2]
[315792376,1709181045754,-349.07824418,0.00019178,2]
[315792377,1709181045764,-382.06785178,0.00019178,2]
[315792381,1709181045776,-3112.82508354,0.00019178,2]
[315792385,1709181045799,-416.75595341,0.00019178,2]
[315792387,1709181045810,-10.56111127,0.00019178,2]
[315792389,1709181045820,-730.09409444,0.00019178,2]
[315792391,1709181045833,-456.56140011,0.00019178,2]
[315792401,1709181045918,-2702.17450545,0.00019178,2]
[315792403,1709181045928,-504.40736538,0.00019178,2]
[315792405,1709181045938,-2277.87,0.00019178,2]
[315792407,1709181045948,-500.0,0.00019178,2]
[315792409,1709181045958,-500.0,0.00019178,2]
[315792411,1709181045967,-809.1,0.00019178,2]
[315792412,1709181045976,-725.73,0.00019178,2]
[315792414,1709181045986,-561.3,0.00019178,2]
[315792417,1709181045995,-500.0,0.00019178,2]
[315792418,1709181046004,-500.0,0.00019178,2]
[315792421,1709181046048,-500.0,0.00019178,2]
[315792423,1709181046058,-582.54,0.00019178,2]
[315792425,1709181046068,-1561.56,0.00019178,2]
[315792426,1709181046078,-161.59100966,0.00019178,2]
[315792429,1709181046087,-500.0,0.00019178,2]
[315792431,1709181046097,-500.0,0.00019178,2]
[315792433,1709181046108,-168.1141444,0.00019178,2]
[315792434,1709181046118,-1311.86627105,0.00019355,2]
[315792436,1709181046128,-248.293735,0.00019432,2]
[315792439,1709181046138,-248.293735,0.00019432,2]
[315792441,1709181046148,-9343.76,0.00019432,3]
[315792442,1709181046158,-3693.04907602,0.00019432,3]
[315792445,1709181046170,-342.36884967,0.00019432,3]
[315792920,1709181656276,10000.0,0.00018,2]
[315792921,1709181669327,10000.0,0.00018,2]
[315792922,1709181683540,10000.0,0.00018,2]
[315792923,1709181711827,288.0,0.00018,2]
[315792924,1709182036621,24900.0,0.00017981,2]
[315793049,1709182239505,-1020.9987382,0.0001814,2]
[315793050,1709182239514,-274.00317953,0.00018141,2]
[315793051,1709182239523,-200.2273066,0.00018142,2]
[315793052,1709182239533,-160.4829556,0.00018672,2]
[315793053,1709182239542,-474.26794524,0.000189,2]
[315793054,1709182239552,-183.92979579,0.00019,2]
[315793055,1709182239561,-168.67438006,0.00019078,2]
[315793056,1709182239570,-500.89169338,0.00019178,2]
[315793057,1709182239579,-502.00456458,0.00019178,2]
[315793058,1709182239588,-151.0,0.00019178,2]
[315793059,1709182239598,-500.0,0.00019178,2]
[315793060,1709182239608,-503.26462671,0.00019178,2]
[315793061,1709182239618,-500.0,0.00019178,2]
[315793062,1709182239628,-500.0,0.00019178,2]
[315793063,1709182239637,-500.0,0.00019178,2]
[315793064,1709182239647,-385.93868809,0.00019178,2]
[315793065,1709182239659,-503.64485302,0.00019178,2]
[315793066,1709182239668,-500.0,0.00019178,2]
[315793067,1709182239677,-411.54897742,0.00019178,2]
[315793068,1709182239686,-501.74258003,0.00019178,2]
[315793069,1709182239696,-502.74837173,0.00019178,2]
[315793070,1709182239706,-638.61636241,0.00019178,2]
[315793071,1709182239715,-227.47,0.00019178,2]
[315793072,1709182239725,-505.86750093,0.00019178,2]
[315793073,1709182239735,-500.0,0.00019178,2]
[315793074,1709182239746,-500.71923218,0.00019178,2]
[315793075,1709182239755,-500.0,0.00019178,2]
[315793076,1709182239765,-500.73126865,0.00019178,2]
[315793077,1709182239774,-254.94,0.00019178,2]
[315793078,1709182239784,-500.0,0.00019178,2]
[315793079,1709182239793,-500.0,0.00019178,2]
[315793080,1709182239802,-590.22,0.00019178,2]
[315793081,1709182239812,-500.94696096,0.00019178,2]
[315793082,1709182239821,-156.34601299,0.00019178,2]
[315793083,1709182239831,-500.0,0.00019178,2]
[315793084,1709182239841,-500.0,0.00019178,2]
[315793085,1709182239850,-501.87,0.00019178,2]
[315793086,1709182239860,-500.0,0.00019178,2]
[315793087,1709182239870,-763.40394877,0.00019178,2]
[315793088,1709182239882,-2724.0367558,0.00019178,2]
[315793122,1709182245286,-271.33929543,0.00019178,2]
[315793124,1709182245295,-500.0,0.00019178,2]
[315793126,1709182245305,-500.0,0.00019178,2]
[315793128,1709182245313,-500.0,0.00019178,2]
[315793129,1709182245322,-500.0,0.00019178,2]
[315793130,1709182245332,-500.0,0.00019178,2]
[315793131,1709182245342,-500.0,0.00019178,2]
[315793132,1709182245351,-1496.5,0.00019178,2]
[315793133,1709182245360,-500.0,0.00019178,2]
[315793134,1709182245369,-500.0,0.00019178,2]
[315793135,1709182245380,-166.666666,0.00019178,2]
[315793136,1709182245389,-303.09403857,0.00019335,2]
[315793154,1709182246273,-909.98550639,0.00019335,2]
[315793156,1709182246283,-22.99449361,0.00019335,2]
[315793158,1709182246295,-204.0876673,0.00019335,2]
[315793160,1709182246304,-500.0,0.00019396,2]
[315793162,1709182246313,-209.79,0.00019396,2]
[315793163,1709182246323,-8144.06728302,0.00019397,2]
[315793164,1709182246332,-191.905253,0.00019431,2]
[315793165,1709182246341,-151.0,0.00019431,2]
[315793166,1709182246350,-3726.8,0.00019431,2]